[Event "Warsaw Chess Open-B 2022"]
[Site "Warsaw"]
[Date "2022.07.23"]
[Round "7.8"]
[White "Ryszkiewicz, Adam"]
[Black "Nocek, Dominik"]
[Result "1-0"]
[ECO "C50"]
[WhiteElo "1977"]
[BlackElo "1682"]
[Annotator "TA"]
[PlyCount "125"]
[EventDate "2022.07.18"]
[EventType "swiss"]
[EventCountry "POL"]
[SourceTitle "playchess.com"]
[Source "ChessBase"]
[SourceQuality "1"]
[TimeControl "40/5400+30:1800+30"]

{[%evp 13,125,16,19,7,22,23,22,31,21,18,48,33,38,36,39,33,43,29,31,20,34,20,29,40,42,42,28,17,18,7,28,32,33,7,47,0,0,17,43,0,0,0,0,0,23,33,15,0,0,0,0,0,66,66,170,135,226,239,404,397,411,333,371,355,348,209,292,292,292,289,289,280,354,330,358,376,350,362,409,393,375,281,319,296,389,396,388,375,386,386,606,606,611,598,566,541,509,441,919,694,694,688,679,658,758,304,343,336,616,585,606,603,29972,29973]} 1. e4 {[%emt 0:00:03]} e5 {[%emt 0:00:05]} 2. Nf3 {[%emt 0:00:05]} Nc6 {[%emt 0:00:05]} 3. Bc4 {[%emt 0:00:03]} Nf6 {[%emt 0:00:08]} 4. d3 {[%emt 0:00:04]} Bc5 {[%emt 0:00:18]} 5. c3 {[%emt 0:00:07]} d6 {[%emt 0:00:17]} 6. a4 {[%emt 0:00:42]} a6 {[%emt 0:05:08]} 7. O-O {[%emt 0:00:43]} h6 {[%emt 0:03:21]} 8. Nbd2 {[%emt 0:00:48] C54: Giuoco Piano: 4 c3 Nf6, main lines with 5 d4 and 5 d3.} Ba7 {[%emt 0:01:33]} 9. Re1 {[%emt 0:01:49]} Ng4 {[%emt 0:04:19]} 10. Re2 {[%emt 0:00:20] The position is equal.} O-O {[%emt 0:01:35]} 11. Nf1 {[%emt 0:02:37] [#]} Kh7 $146 {[%emt 0:08:31]} ({Predecessor:} 11... Be6 12. Bxe6 fxe6 13. h3 Rxf3 14. gxf3 Nf6 15. Ng3 Nh7 16. Kg2 Qf6 17. Be3 Rf8 18. Bxa7 Qxf3+ {1-0 (46) Van Foreest,J (2614)-Kovalev,V (2683) St Petersburg 2018}) 12. h3 {[%emt 0:13:28]} Nf6 {[%emt 0:00:10]} 13. b4 {[%emt 0:00:30]} Be6 {[%emt 0:05:25]} 14. Bxe6 {[%emt 0:09:59]} fxe6 {[%emt 0:00:03]} 15. Qb3 Qd7 {[%emt 0:18:38]} 16. Raa2 {[%emt 0:10:33]} Ne7 {[%emt 0:09:51]} 17. Ng3 {[%emt 0:02:39]} Ng6 {[%emt 0:00:49]} 18. d4 {[%emt 0:10:00]} exd4 {[%emt 0:03:11]} 19. cxd4 {[%emt 0:00:37]} e5 {[%emt 0:09:02]} 20. d5 {[%emt 0:08:51]} Qf7 {[%emt 0:07:21]} 21. Qd3 {[%emt 0:03:11]} Rae8 {[%emt 0:06:15]} 22. Rac2 {[%emt 0:02:09]} Qd7 {[%emt 0:06:30]} 23. Qb3 {[%emt 0:04:26]} Nf4 {[%emt 0:04:17]} 24. Bxf4 {[%emt 0:01:01]} exf4 {[%emt 0:00:03]} 25. Nf1 {[%emt 0:00:08]} Kh8 {[%emt 0:04:48]} (25... Rxe4 $2 26. Qd3 Bxf2+ 27. Kxf2 $18) 26. Qd3 {[%emt 0:03:14]} (26. N1d2 $5 {[%cal Re4e5]}) 26... Qxa4 {[%emt 0:01:14]} 27. e5 {[%emt 0:01:33]} dxe5 {[%emt 0:00:23]} 28. Nxe5 {[%emt 0:00:11]} Rxe5 {[%emt 0:00:13]} 29. Rxe5 {[%emt 0:00:05] Hoping for d6.} Qxb4 {[%emt 0:00:07]} 30. Rce2 {[%emt 0:05:35]} Qd4 {[%emt 0:00:57]} 31. Qg6 {[%emt 0:00:40]} f3 {[%emt 0:00:44]} (31... Nxd5 $2 32. Re8 Bc5 33. Qf7 $18) 32. gxf3 {[%emt 0:00:38] aiming for Ng3.} Qf4 {[%emt 0:00:38]} (32... Rg8 $11) 33. Rf5 $14 {[%emt 0:01:51]} (33. Re7 Rg8 $11) 33... Qh4 {[%emt 0:00:28] White stays focused until the end.} (33... Qd4 $1 $14) 34. Ng3 $40 {[%emt 0:01:46][%cal Od5d6][%mdl 128] White attacks with force.} Qd4 {[%emt 0:00:31] [#]} (34... Rg8 $16 {keeps fighting.}) 35. Rfe5 $1 $18 {[%emt 0:01:19] Threatens to win with Nf5.} Rg8 $2 {[%emt 0:00:30]} (35... Qd1+ {was called for.} 36. Kh2 Qd4) 36. Nf5 {[%emt 0:00:56] Active counter play!} Qf4 {[%emt 0:00:28]} 37. Re7 {[%emt 0:03:48]} Qg5+ {[%emt 0:00:10]} 38. Qxg5 {[%emt 0:00:05] Dancing on a razor blade.} hxg5 {[%emt 0:00:01]} 39. Rd2 {[%emt 0:01:58]} (39. Rxc7 Nxd5 40. Rxb7 Nf4) 39... Bb6 {[%emt 0:00:48]} 40. d6 {[%emt 0:00:43]} cxd6 {[%emt 0:00:34]} 41. Nxd6 {[%emt 0:30:05]} Ba5 {[%emt 0:30:20]} 42. Ra2 {[%emt 0:00:36]} Bb4 {[%emt 0:00:16]} 43. Nf7+ {[%emt 0:00:09]} (43. Rxb7 Bxd6 44. Rxa6 Rd8 $11) 43... Kh7 {[%emt 0:00:04]} 44. Rxb7 {[%emt 0:00:07]} (44. Nxg5+ Kh6 $18) 44... a5 {[%emt 0:00:16]} 45. Nxg5+ {[%emt 0:00:32]} Kg6 {[%emt 0:00:19]} 46. Ne6 {[%emt 0:00:14]} Nd5 {[%emt 0:00:33]} 47. Nd4 {[%emt 0:03:46]} Re8 {[%emt 0:00:51]} 48. Re2 {[%emt 0:01:04]} Rc8 {[%emt 0:00:27]} 49. Re6+ {[%emt 0:00:40]} Kh7 {[%emt 0:00:13]} 50. Nf5 {[%emt 0:01:09]} Rc1+ {[%emt 0:00:21]} 51. Kh2 {[%emt 0:00:03]} Bc3 {[%emt 0:01:16]} (51... Rc7 $142) 52. h4 {[%emt 0:03:23][%cal Bh3h4,Bh4h5][%mdl 32]} Rc2 {[%emt 0:00:57]} 53. h5 {[%emt 0:00:16]} Rxf2+ {[%emt 0:00:39]} 54. Kg3 {[%emt 0:00:07]} Rb2 {[%emt 0:00:33]} 55. Rd7 {[%emt 0:01:05]} Nb6 {[%emt 0:00:48]} (55... Rg2+ $142 56. Kxg2 Nf4+ 57. Kf2 Nxe6) 56. Rc7 {[%emt 0:01:29]} Nd5 {[%emt 0:00:13]} 57. Rc5 {[%emt 0:00:16]} Rd2 {[%emt 0:00:27]} 58. h6 {[%emt 0:00:36][%cal Oc5c3] And now Rxc3! would win.} gxh6 {[%emt 0:00:37]} 59. Rxh6+ {[%emt 0:00:35]} (59. Ne7 $142) 59... Kg8 {[%emt 0:00:08]} 60. Ra6 {[%emt 0:02:15]} ({Inferior is} 60. Rxd5 Rxd5 61. Ne7+ Kg7 $11) 60... Be5+ $2 {[%emt 0:00:15] [#]} (60... Kf7 61. Nd6+ Ke7) 61. f4 $1 {[%emt 0:00:30]} Bxf4+ {[%emt 0:00:56]} 62. Kf3 {[%emt 0:00:13]} Bh2 {[%emt 0:00:59] [#]} 63. Rxd5 $1 {[%emt 0:00:07][%mdl 512] Weighted Error Value: White=0.23 (precise) /Black=0.50} 1-0

[Event "Warsaw Chess Open-B 2022"]
[Site "Warsaw"]
[Date "2022.07.24"]
[Round "8.1"]
[White "Kaminski, Jan"]
[Black "Kowalczyk, Adam"]
[Result "1/2-1/2"]
[ECO "C01"]
[WhiteElo "1870"]
[BlackElo "1944"]
[Annotator "TA"]
[PlyCount "27"]
[EventDate "2022.07.18"]
[EventType "swiss"]
[EventCountry "POL"]
[SourceTitle "playchess.com"]
[Source "ChessBase"]
[SourceQuality "1"]
[TimeControl "40/5400+30:1800+30"]

{[%evp 13,27,0,5,0,0,0,0,0,0,0,0,0,0,-1,0,-3]} 1. e4 {[%emt 0:00:01]} e6 {[%emt 0:00:04]} 2. d4 {[%emt 0:00:06]} d5 {[%emt 0:00:04]} 3. exd5 {[%emt 0:00:05]} exd5 {[%emt 0:00:04]} 4. c4 {[%emt 0:00:04]} Bb4+ {[%emt 0:00:03]} 5. Nc3 {[%emt 0:00:04]} Nf6 {[%emt 0:00:04]} 6. Bd3 {[%emt 0:00:04]} c5 {[%emt 0:00:04]} 7. Nge2 {[%emt 0:11:24]} O-O {[%emt 0:00:06] The position is equal.} 8. O-O {[%emt 0:00:24] C01: French: Exchange Variation.} (8. cxd5 {is more complex.} cxd4 9. Nxd4 Bg4 10. Qb3) 8... dxc4 $1 {[%emt 0:00:05]} 9. Bxc4 {[%emt 0:00:06]} Nc6 {[%emt 0:00:03]} 10. dxc5 {[%emt 0:17:07] [#]} Qe7 $146 {[%emt 0:00:04]} ({Predecessor:} 10... Qxd1 11. Rxd1 Ne5 12. Nd5 Nxd5 13. Bxd5 Bg4 14. Kf1 Bxc5 15. Bf4 Rfe8 16. Bxe5 Rxe5 {½-½ (55) Gaehwiler,G (2260)-Kreisl,R (2400) Plovdiv 2012}) 11. Qd6 {[%emt 0:03:08]} Bxc5 {[%emt 0:01:51]} 12. Qxe7 {[%emt 0:00:05]} Bxe7 {[%emt 0:00:21]} 13. Bf4 {[%emt 0:01:52]} Bf5 {[%emt 0:16:50]} 14. Rad1 {[%emt 0:00:53] An even fight not without its subleties.  Weighted Error Value: White=0.01 (flawless) /Black=0.00 (flawless)} 1/2-1/2

[Event "Warsaw Chess Open-B 2022"]
[Site "Warsaw"]
[Date "2022.07.24"]
[Round "8.2"]
[White "Arciszewska, Zuzanna"]
[Black "Kaczmarska, Joanna"]
[Result "0-1"]
[ECO "E92"]
[WhiteElo "1574"]
[BlackElo "1965"]
[Annotator "TA"]
[PlyCount "121"]
[EventDate "2022.07.18"]
[EventType "swiss"]
[EventCountry "POL"]
[SourceTitle "playchess.com"]
[Source "ChessBase"]
[SourceQuality "1"]
[TimeControl "40/5400+30:1800+30"]

{[%evp 21,121,44,46,28,37,0,0,-32,-45,-28,-43,-43,-20,-65,-22,-27,-10,-45,-41,-64,0,0,0,-53,-58,-53,0,-16,-12,-15,-19,-43,-46,-230,-241,-235,-147,-154,-131,-154,-100,-325,0,-248,-245,-237,-134,-135,-143,-460,-384,-512,-400,-401,-164,-258,-243,-253,-258,-255,-261,-263,-260,-243,-256,-256,-259,-261,-254,-237,-202,-306,-276,-301,-287,-287,0,-256,-251,-269,-222,-299,-280,-299,-292,-281,-272,-597,-597,-1675,-1590,-1492,-1310,-5097,-5097,-29952,-29952,-29954,-29952,-29937,-6079,-29975]} 1. d4 {[%emt 0:00:03]} Nf6 {[%emt 0:00:05]} 2. Nf3 {[%emt 0:00:23]} g6 {[%emt 0:00:09]} 3. c4 {[%emt 0:00:27]} Bg7 {[%emt 0:00:12]} 4. Nc3 {[%emt 0:00:41]} d6 {[%emt 0:00:19]} 5. e4 {[%emt 0:00:27]} O-O {[%emt 0:00:30]} 6. Be2 {[%emt 0:01:07]} e5 {[%emt 0:01:06]} 7. d5 {[%emt 0:03:29]} Na6 {[%emt 0:04:15]} 8. O-O {[%emt 0:05:08]} Nc5 {[%emt 0:03:32]} 9. Qc2 {[%emt 0:02:52]} a5 {[%emt 0:02:44]} 10. Be3 {[%emt 0:06:44]} Ng4 {[%emt 0:03:36]} 11. Bxc5 {[%emt 0:03:32]} dxc5 {[%emt 0:00:16]} 12. Rad1 {[%emt 0:07:27] E94: King's Indian: Classical: 6 Be2 e5 7 0-0: Various Black 7th moves.} f5 {[%emt 0:08:17]} 13. d6 {[%emt 0:15:17]} cxd6 {[%emt 0:15:43]} 14. Qd3 {[%emt 0:02:29] The position is equal.} Ra6 {[%emt 0:14:13]} 15. Nb5 {[%emt 0:04:32]} fxe4 {[%emt 0:06:02]} 16. Qxe4 {[%emt 0:00:48] [#]} Qe7 $146 {[%emt 0:03:40]} ({Predecessor:} 16... Nf6 17. Qh4 Bf5 18. Rfe1 h6 19. Nd2 Qe7 20. Bf3 Qf7 21. b3 a4 22. Ne4 Bxe4 23. Bxe4 Nxe4 24. Rxe4 axb3 25. axb3 {0-1 (54) Schnider,G (2292)-Tratar,M (2473) Aschach 2004}) 17. h3 {[%emt 0:05:52]} Bf5 {[%emt 0:02:22]} 18. Qd5+ {[%emt 0:00:13]} Be6 {[%emt 0:00:05]} 19. Qd2 {[%emt 0:02:28]} (19. Qd3 $5 {[%cal Rh3g4]} Nh6 20. Nxd6 $15) 19... Bh6 {[%emt 0:03:39]} 20. Qd3 {[%emt 0:03:36]} Bf5 {[%emt 0:04:50]} (20... Nf6 $5 {[%cal Re5e4]} 21. Nxd6 Bxh3 $1 22. gxh3 e4 23. Nxe4 Nxe4 24. Qd5+ Re6 $15) 21. Qd5+ {[%emt 0:01:09]} Be6 {[%emt 0:00:06]} 22. Qd3 {[%emt 0:00:25]} Nf6 $36 {[%emt 0:09:42][%cal Bg4f6,Bf6h5,Bh5f4][%mdl 2080] Black has the initiative.} 23. Nxd6 {[%emt 0:11:15] [#]} Bd5 {[%emt 0:05:37]} 24. cxd5 {[%emt 0:00:51]} Rxd6 {[%emt 0:00:04]} 25. Qc3 {[%emt 0:00:38]} e4 {[%emt 0:00:39][%cal Be5e4,Be4e3][%mdl 32]} (25... Nxd5 $2 26. Bc4 $18) 26. Ne1 {[%emt 0:05:09]} e3 $1 {[%emt 0:00:58]} (26... Rxd5 $2 27. Bc4 Rfd8 28. Nc2 $18 (28. Qxa5 Kg7 $18)) 27. f3 {[%emt 0:02:07] Against Ne4} (27. f4 $1 $15) 27... Nh5 $19 {[%emt 0:02:26]} (27... Rxd5 28. Bc4 Rfd8 29. Bxd5+ Nxd5 30. Qc4) (27... Nxd5 28. Qxc5 b6 29. Qc4 $15) 28. Nd3 {[%emt 0:01:11]} Nf4 {[%emt 0:01:00]} (28... Rxd5 29. Qb3 Nf6 30. Nc1 $17) 29. Nxf4 {[%emt 0:03:55]} Bxf4 {[%emt 0:00:06]} 30. Qxa5 {[%emt 0:01:15]} Rf5 $1 {[%emt 0:03:44] White must now prevent ...Qh4.} 31. Rc1 $2 {[%emt 0:02:40]} (31. Qxc5 $6 Qg5 32. Rd4 Rc6 $3 $11 {[%mdl 512]}) (31. Kh1 $17 {was worth a try.}) 31... Rg5 $2 {[%emt 0:03:20]} (31... Rfxd5 32. Rxc5 Qh4 33. Rc8+ (33. Rxd5 Qg3 34. Qa8+ Kg7 35. Qxb7+ Kh6) 33... Kg7 34. Qe1 (34. Qc7+ $2 Kh6 $19) 34... Qxe1 35. Rxe1 $17) ({Better is} 31... Rdxd5 $19 32. Rc2 Rd2) 32. Qe1 {[%emt 0:02:51]} (32. Rxc5 Rxg2+ 33. Kxg2 Qg5+ 34. Kh1 Qh4 35. Qa8+ (35. Rc8+ $2 Kg7 $19) 35... Rd8 36. Qxd8+ Qxd8 $17) (32. Qxc5 $11 {and White is okay.} Rf5 33. Qb4) 32... Rg3 $1 {[%emt 0:01:10]} (32... Rdxd5 33. Bc4 $11) (32... Bg3 33. Qc3 $11) 33. Rc4 {[%emt 0:01:38] [#]} (33. Rxc5 Qg5 34. Rf2 exf2+ 35. Qxf2 Be3 36. Rc8+ Kg7 37. Rg8+ Kxg8) 33... Qg5 {[%emt 0:00:44]} ({Black should try} 33... Qd7 $1 $19 {[%cal Od7h3] aiming for ...Qxh3!} 34. Rxf4 Qxh3 35. Qxg3 Qxg3) 34. Rxf4 $17 {[%emt 0:00:24]} Qxf4 {[%emt 0:00:28]} 35. Kh1 $2 {[%emt 0:02:13][%mdl 8192]} (35. Bd3 $17 {is tougher.}) 35... Rg5 {[%emt 0:00:55]} 36. Qa5 {[%emt 0:01:07]} b6 {[%emt 0:00:49]} 37. Qa8+ {[%emt 0:01:20] [#]} Qf8 {[%emt 0:00:29] Active counter play!} (37... Kg7 $142 $1 38. Rd1 Qg3) 38. Qxf8+ {[%emt 0:01:03]} (38. Qb7 {is a better defense.}) 38... Kxf8 $19 {[%emt 0:00:04][%mdl 4096] Endgame KRR-KRB} 39. Bc4 {[%emt 0:00:25]} b5 {[%emt 0:00:11]} 40. f4 {[%emt 0:00:42]} Rf5 {[%emt 0:01:25]} 41. g4 {[%emt 0:30:16]} Rff6 {[%emt 0:30:47]} ({Stronger than} 41... bxc4 42. gxf5 Rxd5 43. Re1 $15) 42. Bxb5 {[%emt 0:00:43]} Rxd5 {[%emt 0:00:30]} 43. Kg2 {[%emt 0:00:24]} Rd2+ {[%emt 0:00:31]} 44. Kf3 {[%emt 0:00:04]} Rxb2 {[%emt 0:00:22]} 45. a4 {[%emt 0:00:02]} Re6 {[%emt 0:00:40]} 46. Re1 {[%emt 0:00:32]} (46. Be2 $142) 46... Rf2+ {[%emt 0:00:30]} 47. Kg3 {[%emt 0:00:03]} Re4 {[%emt 0:00:28]} 48. Bc6 {[%emt 0:00:44]} Re6 {[%emt 0:00:30]} ({Worse is} 48... Rfxf4 49. Bxe4 Rxe4 50. a5 $15) ({Not} 48... Rexf4 49. Rxe3 g5 50. Re8+ Kf7 51. Re5 $19) 49. Bb5 {[%emt 0:00:10]} Rd2 {[%emt 0:00:32]} 50. Kf3 {[%emt 0:00:30]} Rb2 {[%emt 0:00:34]} 51. Rxe3 {[%emt 0:01:10]} Rxe3+ {[%emt 0:00:14]} 52. Kxe3 {[%emt 0:00:01] KR-KB} Ke7 {[%emt 0:00:35]} 53. h4 {[%emt 0:00:46]} Rh2 {[%emt 0:00:28]} 54. h5 $2 {[%emt 0:00:47]} (54. Ke4) 54... gxh5 {[%emt 0:00:08][%cal Bg6h5,Bh5h4,Bh4h3,Bh3h2][%mdl 32]} 55. g5 {[%emt 0:00:48]} h4 {[%emt 0:00:25]} 56. Kf3 {[%emt 0:00:43]} Rd2 {[%emt 0:01:09] ...h3 is the strong threat.} 57. f5 {[%emt 0:00:35]} h3 {[%emt 0:00:31]} 58. Ke3 {[%emt 0:00:46] [#]} Kd6 $1 {[%emt 0:00:31]} 59. f6 {[%emt 0:00:30]} (59. Kxd2 h2) 59... h2 {[%emt 0:00:20]} 60. f7 {[%emt 0:00:04]} Ke7 {[%emt 0:00:23] ( -> ...Rd6)} 61. Bc6 {[%emt 0:00:56] Weighted Error Value: White=0.84/Black=0.38} 0-1

[Event "Warsaw Chess Open-B 2022"]
[Site "Warsaw"]
[Date "2022.07.24"]
[Round "8.3"]
[White "Posuniak, Weronika"]
[Black "Trybowska, Barbara"]
[Result "1/2-1/2"]
[ECO "D10"]
[WhiteElo "1895"]
[BlackElo "1828"]
[Annotator "NA RC COMBH"]
[PlyCount "78"]
[EventDate "2022.07.18"]
[EventType "swiss"]
[EventCountry "POL"]
[SourceTitle "playchess.com"]
[Source "ChessBase"]
[SourceQuality "1"]
[TimeControl "40/5400+30:1800+30"]

1. d4 {[%emt 0:00:03]} d5 {[%emt 0:00:05]} 2. c4 {[%emt 0:00:07]} c6 {[%emt 0:00:04]} 3. Nc3 {[%emt 0:00:32]} Nf6 {[%emt 0:00:06]} 4. e3 {[%emt 0:00:11]} a6 {[%emt 0:00:06]} 5. Bd3 {[%emt 0:02:13]} e6 {[%emt 0:03:00]} 6. Nf3 {[%emt 0:01:38]} Bd6 {[%emt 0:01:25]} 7. O-O {[%emt 0:00:45]} h6 {[%emt 0:00:18]} 8. Qe2 {[%emt 0:05:07]} Nbd7 {[%emt 0:03:29]} 9. Bd2 {[%emt 0:08:50]} O-O {[%emt 0:00:57]} 10. Bc2 {[%emt 0:06:19]} Re8 {[%emt 0:08:56]} 11. e4 {[%emt 0:04:21]} e5 {[%emt 0:09:59]} 12. dxe5 {[%emt 0:03:04]} Nxe5 {[%emt 0:17:21]} 13. cxd5 {[%emt 0:00:51]} cxd5 {[%emt 0:00:50]} 14. h3 {[%emt 0:11:14]} Nxf3+ {[%emt 0:10:25]} 15. Qxf3 {[%emt 0:00:11]} d4 {[%emt 0:00:29]} 16. Nd5 {[%emt 0:01:21]} Be5 {[%emt 0:02:49]} 17. Nxf6+ {[%emt 0:02:04]} Qxf6 {[%emt 0:00:14]} 18. Qxf6 {[%emt 0:02:24]} Bxf6 {[%emt 0:00:06]} 19. Bd3 {[%emt 0:00:42]} Be6 {[%emt 0:01:16]} 20. b3 {[%emt 0:00:31]} Rac8 {[%emt 0:01:44]} 21. Rac1 {[%emt 0:00:22]} Be7 {[%emt 0:00:50]} 22. Rxc8 {[%emt 0:00:50]} Rxc8 {[%emt 0:00:05]} 23. Rc1 {[%emt 0:00:07]} Rxc1+ {[%emt 0:00:45]} 24. Bxc1 {[%emt 0:00:05]} Kf8 {[%emt 0:00:27]} 25. Kf1 {[%emt 0:00:36]} Ke8 {[%emt 0:00:47]} 26. Ke2 {[%emt 0:00:56]} Bc5 {[%emt 0:10:08]} 27. f4 {[%emt 0:04:08]} b5 {[%emt 0:01:35]} 28. Bb2 {[%emt 0:02:44]} f6 {[%emt 0:00:21]} 29. Bc2 {[%emt 0:00:32]} Bd7 {[%emt 0:01:12]} 30. g4 {[%emt 0:01:58]} h5 {[%emt 0:01:06]} 31. f5 {[%emt 0:00:33]} hxg4 {[%emt 0:01:55]} 32. hxg4 {[%emt 0:00:02]} b4 {[%emt 0:00:30]} 33. Bd3 {[%emt 0:00:29]} Bc6 {[%emt 0:00:09]} 34. Kf3 {[%emt 0:08:03]} a5 {[%emt 0:00:29]} 35. g5 {[%emt 0:01:16]} Ke7 {[%emt 0:02:04]} 36. Bc1 {[%emt 0:01:47]} Bd6 {[%emt 0:03:27]} 37. Bf4 {[%emt 0:01:16]} Be8 {[%emt 0:00:36]} 38. g6 {[%emt 0:05:33]} Bxf4 39. Kxf4 Kd6 {[%emt 0:05:24]} 1/2-1/2

[Event "Warsaw Chess Open-B 2022"]
[Site "Warsaw"]
[Date "2022.07.24"]
[Round "8.4"]
[White "Rzeszowski, Dominik"]
[Black "Masalski, Pawel"]
[Result "1-0"]
[ECO "B22"]
[WhiteElo "1856"]
[BlackElo "1550"]
[Annotator "NA COMBH"]
[PlyCount "33"]
[EventDate "2022.07.18"]
[EventType "swiss"]
[EventCountry "POL"]
[SourceTitle "playchess.com"]
[Source "ChessBase"]
[SourceQuality "1"]
[TimeControl "40/5400+30:1800+30"]

1. e4 {[%emt 0:00:03]} c5 {[%emt 0:00:05]} 2. c3 {[%emt 0:00:03]} d5 {[%emt 0:00:04]} 3. exd5 {[%emt 0:00:04]} Qxd5 {[%emt 0:00:06]} 4. d4 {[%emt 0:00:03]} Nf6 {[%emt 0:00:11]} 5. Nf3 {[%emt 0:00:06]} e6 {[%emt 0:00:16]} 6. Na3 {[%emt 0:00:21]} Nc6 {[%emt 0:00:18]} 7. Nb5 {[%emt 0:01:43]} Qd8 {[%emt 0:00:11]} 8. dxc5 {[%emt 0:01:26]} Bxc5 {[%emt 0:00:34]} 9. Qxd8+ {[%emt 0:00:41]} Kxd8 {[%emt 0:00:08]} 10. Bf4 {[%emt 0:00:23]} a6 {[%emt 0:07:10]} 11. Nc7 {[%emt 0:29:50]} Ra7 {[%emt 0:00:03]} 12. O-O-O+ {[%emt 0:20:57]} Bd7 {[%emt 0:01:12]} 13. Ng5 {[%emt 0:00:44]} Rf8 {[%emt 0:03:40]} 14. Ncxe6+ {[%emt 0:03:24]} fxe6 {[%emt 0:00:03]} 15. Nxe6+ {[%emt 0:00:07]} Kc8 {[%emt 0:03:41]} 16. Nxc5 {[%emt 0:00:12]} Ne4 {[%emt 0:02:40]} 17. Be3 {[%emt 0:02:59]} 1-0

[Event "Warsaw Chess Open-B 2022"]
[Site "Warsaw"]
[Date "2022.07.24"]
[Round "8.5"]
[White "Sidorczuk, Pawel"]
[Black "Seklecki, Jakub"]
[Result "1-0"]
[ECO "B33"]
[WhiteElo "1962"]
[BlackElo "1501"]
[Annotator "TA"]
[PlyCount "65"]
[EventDate "2022.07.18"]
[EventType "swiss"]
[EventCountry "POL"]
[SourceTitle "playchess.com"]
[Source "ChessBase"]
[SourceQuality "1"]
[TimeControl "40/5400+30:1800+30"]

{[%evp 23,65,0,0,0,12,-6,16,0,61,50,60,51,83,0,52,20,58,25,29,22,73,25,41,21,46,14,42,40,65,42,85,53,122,0,0,-17,-20,-30,632,673,649,629,29997,29998]} 1. e4 {[%emt 0:00:02]} c5 {[%emt 0:00:07]} 2. Nf3 {[%emt 0:00:04][%cal Bg1f3,Bf3d4,Bd4b5,Bb5a3,Ba3c2][%mdl 32]} Nc6 {[%emt 0:00:17]} 3. d4 {[%emt 0:00:27]} cxd4 {[%emt 0:00:06]} 4. Nxd4 {[%emt 0:00:02]} e5 {[%emt 0:00:29]} 5. Nb5 {[%emt 0:00:07]} Nf6 {[%emt 0:00:24]} 6. N1c3 {[%emt 0:00:11]} d6 {[%emt 0:00:05]} 7. Bg5 {[%emt 0:00:06]} a6 {[%emt 0:00:05]} 8. Na3 {[%emt 0:00:03]} b5 {[%emt 0:00:18]} 9. Nd5 {[%emt 0:00:10]} Be7 {[%emt 0:00:06]} 10. Bxf6 {[%emt 0:00:04]} Bxf6 {[%emt 0:00:08]} 11. c4 {[%emt 0:00:24]} b4 {[%emt 0:01:18]} 12. Nc2 {[%emt 0:00:05]} a5 {[%emt 0:00:10] 12...0-0 deserves study.} 13. g3 {[%emt 0:00:51] B33: Sicilian: Pelikan and Sveshnikov Variations.} O-O {[%emt 0:03:34]} 14. h4 {[%emt 0:01:46][%cal Bh2h4,Bh4h5][%mdl 32]} g6 {[%emt 0:02:25]} 15. Bh3 {[%emt 0:06:23] The position is equal.} Bg7 {[%emt 0:03:26]} (15... Be6 $11) 16. Bxc8 $14 {[%emt 0:04:36] White is more active.} Rxc8 {[%emt 0:00:12] [#]} 17. h5 $146 {[%emt 0:12:48]} ({Predecessor:} 17. Qe2 Ne7 18. Nxe7+ Qxe7 19. Rd1 Rfd8 20. Ne3 Rc5 21. b3 Qb7 22. Nd5 Rf8 23. g4 {1-0 (35) Ma,Q (2475)-Saurabh,A (1762) New Delhi 2012}) 17... Qg5 {[%emt 0:08:02]} 18. Qd2 {[%emt 0:05:06]} (18. Qd3 $16) 18... Qg4 {[%emt 0:10:34]} (18... Qxd2+ $1 $11 19. Kxd2 f5) 19. Qe2 {[%emt 0:03:54]} Qe6 {[%emt 0:03:15]} 20. Kf1 {[%emt 0:15:28]} f5 {[%emt 0:05:02]} 21. hxg6 {[%emt 0:02:24]} hxg6 {[%emt 0:03:30]} (21... Qxg6 $11 {keeps the balance.} 22. Re1 Rf7) 22. exf5 {[%emt 0:05:00]} (22. b3 $16) 22... Qxf5 $11 {[%emt 0:01:31]} 23. Rh4 {[%emt 0:05:27]} Rce8 {[%emt 0:04:08]} 24. Re4 {[%emt 0:03:45]} Qh3+ {[%emt 0:03:17]} 25. Kg1 {[%emt 0:00:04]} Rf7 {[%emt 0:06:48]} 26. Rf1 {[%emt 0:06:57]} Ref8 {[%emt 0:02:02][%cal Be8f8,Bf8f5,Bf5h5][%mdl 32]} 27. Rg4 {[%emt 0:02:52]} Rf3 {[%emt 0:05:19]} ({Better is} 27... Qh5 $14) 28. Qe4 {[%emt 0:00:15]} (28. Rxg6 $16 {Black must now prevent Qe4.} R8f5 29. Rg5 $3 {[%mdl 512]}) 28... R8f5 {[%emt 0:05:54][%cal Of5h5] Threatens to win with ...Rh5!} 29. Nce3 {[%emt 0:05:00] [#] Pair of Knights!} ({Avoid the trap} 29. Rxg6 $2 {[#]} Rh5 $1 30. Nf6+ Rxf6 $19) (29. Rg5 $5) 29... Rh5 {[%emt 0:03:21][%csl Gh5][%cal Rh3h2]} 30. Rh4 {[%emt 0:00:12] [#]} Rxg3+ {[%emt 0:00:31][%mdl 8192]} 31. fxg3 $18 {[%emt 0:00:09]} Qxg3+ {[%emt 0:00:13]} 32. Ng2 {[%emt 0:00:04] Strongly threatening Rxh5.} Rg5 {[%emt 0:04:08] [#]} 33. Ne7+ $1 {[%emt 0:00:08][%mdl 512] Weighted Error Value: White=0.23 (precise) /Black=0.81} 1-0